bitfinex/quotes_ETHUSD_20260306
["timestamp","ask_amount","ask_price","bid_price","bid_amount"]
[1772802810258,0.002,2050.7,2050.2,1.21939322]
[1772802810455,0.002,2050.7,2050.1,4.87867291]
[1772802810640,0.002,2050.7,2050.1,11.26867291]
[1772802811349,0.002,2050.7,2050.1,12.55167575]
[1772802813165,0.002,2050.9,2050.1,12.55167575]
[1772802813466,0.002,2050.9,2050.2,6.39]
[1772802814763,0.002,2050.9,2050.3,1.21933375]
[1772802815066,0.82627394,2050.9,2050.3,1.21933375]
[1772802816143,0.001,2050.7,2050.3,1.21933375]
[1772802819860,0.001,2050.7,2050.2,4.87733502]
[1772802820161,0.001,2050.7,2050.4,1.36]
[1772802820875,0.82527394,2050.7,2050.4,1.36]
[1772802822458,0.001,2050.7,2050.5,1.21921482]
[1772802823674,0.82627394,2050.9,2050.5,1.21921482]
[1772802824171,0.47228645,2051.1,2050.6,0.17572605]
[1772802825049,0.002,2051.1,2050.8,0.45176996]
[1772802825255,0.47028645,2051.7,2050.8,0.45176996]
[1772802825858,0.47028645,2051.7,2050.7,1.21909591]
[1772802826050,0.47028645,2051.6,2050.7,1.21909591]
[1772802827155,0.47028645,2051.4,2050.5,1.21921482]
[1772802827975,0.47128645,2050.9,2050.5,1.21921482]
[1772802831080,0.47128645,2050.9,2050.5,1.67098478]
[1772802832487,0.47028645,2050.8,2050.5,1.21921482]
[1772802832778,0.47028645,2050.8,2050.4,1.3611]
[1772802832982,0.47028645,2050.8,2050.4,2.58037428]
[1772802834789,0.49605081,2050.7,2050.4,2.58037428]
[1772802836116,0.49605081,2050.7,2050.4,2.58035056]
[1772802839695,0.49605081,2050.7,2050.6,0.0011]
[1772802841905,0.46009127,2050.6,2050.4,1.3611]
[1772802842084,0.46009127,2050.6,2050.4,0.0011]
[1772802842410,0.46009127,2050.6,2050.1,0.0011]
[1772802843107,0.46009127,2050.6,2050.1,1.70097375]
[1772802843407,0.46009127,2050.6,2050.2,0.48043892]
[1772802843807,0.46009127,2050.6,2050.3,1.21933375]
[1772802847420,0.46009127,2050.6,2050.3,1.69977267]
[1772802849027,1.67926452,2050.6,2050.3,0.48043892]
[1772802849201,0.46009127,2050.5,2050.1,1.22052975]
[1772802849396,0.46009127,2050.5,2050.1,1.22054735]
[1772802849597,0.46009127,2050.5,2050.1,1.22054692]
[1772802849809,0.46009127,2050.5,2050.1,1.22055079]
[1772802850511,0.46009127,2050.6,2050.2,0.48043892]
[1772802851418,0.46009127,2050.6,2050.4,0.0011]
[1772802852320,1.67924972,2050.6,2050.4,0.0011]
[1772802852522,0.46009127,2050.5,2050.1,1.22052567]
[1772802852729,0.46009127,2050.5,2050.1,0.0011]
[1772802853302,0.46009127,2050.3,2050.1,0.0011]
[1772802854833,0.10292156,2049.5,2049.4,0.001]
[1772802855042,0.56301283,2049.5,2049.1,0.0011]
[1772802855362,0.46009127,2049.3,2049.1,0.0011]
[1772802855515,0.46009127,2049.3,2049.0,0.0011]
[1772802855850,0.46009127,2049.3,2048.9,0.001]
[1772802856047,0.46009127,2049.3,2048.7,1.39]
[1772802856349,0.46009127,2049.3,2048.8,0.001]
[1772802857656,0.46009127,2049.1,2048.8,0.001]
[1772802859149,0.46009127,2049.1,2048.6,0.0011]
[1772802859527,1.22009176,2049.1,2048.6,0.0011]
[1772802859734,0.46009127,2049.0,2048.6,0.0011]
[1772802861516,0.46009127,2049.0,2048.6,1.2214456]
[1772802861722,1.22004918,2049.1,2048.6,1.70188452]
[1772802861921,1.68011594,2049.2,2048.6,1.70188452]
[1772802862159,0.46009127,2049.1,2048.6,1.70188452]
[1772802862953,0.46009127,2049.1,2049.0,0.0011]
[1772802865428,1.68013909,2049.1,2049.0,0.0011]
[1772802865735,0.46009127,2049.1,2049.0,0.0011]
[1772802866256,4.87982821,2049.3,2049.0,0.0011]
[1772802866257,1.21995688,2049.3,2049.0,0.0011]
[1772802866628,1.68004815,2049.3,2049.0,0.0011]
[1772802868856,0.46009127,2049.3,2049.0,0.0011]
[1772802869049,1.6800352,2049.3,2049.0,0.0011]
[1772802869730,1.68003353,2049.3,2049.0,0.0011]
[1772802871854,0.48751532,2049.2,2048.8,0.0011]
[1772802873764,1.70755934,2049.2,2048.8,0.0011]
[1772802874344,1.70751206,2049.2,2048.8,0.48347157]
[1772802875369,1.70751206,2049.2,2049.0,0.0011]
[1772802876162,4.87904294,2049.6,2049.0,0.48347157]
[1772802876163,0.48751532,2049.5,2049.0,0.48347157]
[1772802876757,0.48751532,2049.5,2049.0,0.0011]
[1772802876939,0.48751532,2049.5,2048.8,1.22129474]
[1772802877780,0.48751532,2049.5,2048.9,0.48237157]
[1772802878066,0.48751532,2049.4,2049.0,1.70247893]
[1772802879780,0.48751532,2049.5,2048.9,1.70248997]
[1772802879985,1.21986923,2049.4,2049.0,0.48237157]
[1772802880151,0.48751532,2049.3,2048.8,0.0011]
[1772802882347,1.7075036,2049.2,2048.8,1.22132647]
[1772802882943,0.48751532,2049.1,2048.8,0.0011]
[1772802884964,1.70762268,2049.0,2048.8,0.0011]
[1772802885543,0.48751532,2048.9,2048.6,0.0011]
[1772802887354,1.70760824,2049.1,2048.6,0.48347157]
[1772802887748,0.48751532,2049.0,2048.6,0.48347157]
[1772802888047,0.48751532,2049.2,2048.6,0.48347157]
[1772802888953,0.48751532,2049.2,2049.0,0.0011]
[1772802889154,1.70756314,2049.1,2049.0,0.0011]
[1772802892670,0.48751532,2049.1,2049.0,0.0011]
[1772802894260,0.48751532,2049.3,2049.0,0.0011]
[1772802895473,1.70747143,2049.3,2049.0,0.0011]
[1772802895667,1.21995611,2049.3,2049.0,0.4929344]
[1772802896671,1.71347954,2049.3,2049.0,0.4929344]
[1772802896861,0.49352343,2049.2,2049.0,0.0011]
[1772802897571,1.22004429,2049.2,2049.0,0.0011]
[1772802897879,0.49352343,2049.1,2049.0,0.0011]
[1772802899075,0.49352343,2049.1,2048.7,0.4918344]
[1772802899452,0.49352343,2049.1,2048.7,1.71211472]
[1772802900078,1.71362914,2049.1,2048.7,0.4918344]
[1772802900283,0.49352343,2049.0,2048.7,0.4918344]
[1772802900477,0.49352343,2049.0,2048.6,1.22139775]
[1772802900478,0.49352343,2049.0,2048.6,0.0011]
[1772802901578,0.49352343,2049.0,2048.8,0.0011]
[1772802901877,0.49452343,2049.0,2048.8,0.0011]
[1772802902079,1.22016691,2048.9,2048.8,0.0011]
[1772802902450,1.71467754,2049.0,2048.8,0.0011]
[1772802905076,1.22115411,2049.0,2048.8,0.0011]
[1772802905557,0.001,2049.0,2048.8,0.46393548]
[1772802906081,1.22111546,2049.0,2048.8,0.46393548]
[1772802906281,0.001,2049.0,2048.8,0.46393548]
[1772802906666,0.46727167,2049.0,2048.8,0.0011]
[1772802906871,0.46727167,2049.0,2048.6,0.0011]
[1772802907987,0.46727167,2049.0,2048.5,0.0011]
[1772802907988,0.46627167,2048.8,2048.4,0.0011]
[1772802908367,0.46627167,2048.6,2048.4,0.0011]
[1772802911671,1.68667684,2048.5,2048.4,0.0011]
[1772802911873,0.46627167,2048.4,2048.1,0.0011]
[1772802913092,0.46627167,2048.2,2047.9,0.0011]
[1772802913672,1.68688909,2048.2,2047.9,0.0011]
[1772802913989,0.46627167,2048.1,2047.9,0.0011]
[1772802915598,1.68688909,2048.2,2047.9,0.0011]
[1772802916679,1.68688909,2048.2,2047.9,0.46393548]
[1772802916874,1.22061742,2048.2,2047.9,0.46393548]
[1772802917688,1.68688909,2048.2,2047.9,0.46393548]
[1772802919696,1.22061742,2048.2,2047.9,0.46393548]
[1772802919884,3.20574106,2048.4,2048.0,0.46283548]
[1772802921399,2.73946939,2048.4,2048.0,0.46283548]
[1772802922295,1.68674106,2048.4,2048.0,0.46283548]
[1772802922872,3.20664517,2048.6,2048.1,0.46283548]
[1772802923077,0.46627167,2048.6,2048.1,0.46283548]
[1772802923295,1.22033035,2048.7,2048.1,0.46283548]
[1772802923703,1.68660202,2048.7,2048.1,0.46283548]
[1772802924887,1.68660202,2048.7,2048.3,0.46283548]
[1772802925102,0.001,2048.8,2048.3,0.46283548]
[1772802925283,1.22123626,2048.8,2048.3,0.46283548]
[1772802925489,0.46627167,2048.7,2048.3,0.46283548]
[1772802925987,1.68750793,2048.8,2048.3,0.46283548]
[1772802926188,0.46627167,2048.7,2048.3,0.46283548]
[1772802926777,0.46627167,2048.7,2048.4,1.22046475]
[1772802926973,0.46627167,2048.7,2048.4,1.68330023]
[1772802927679,0.46627167,2048.7,2048.4,0.46283548]
[1772802927904,0.46627167,2048.6,2048.2,0.46283548]
[1772802929599,0.46627167,2048.6,2048.3,0.46283548]
[1772802931800,1.71364721,2048.8,2048.4,0.4623489]
[1772802932108,1.22122647,2048.8,2048.4,0.4623489]
[1772802932800,1.71364721,2048.8,2048.4,0.4623489]
[1772802933989,0.49242074,2048.7,2048.2,1.68288544]
[1772802934619,0.49242074,2048.7,2048.3,0.4623489]
[1772802936121,0.49242074,2048.7,2048.4,0.4623489]
[1772802936489,1.22122647,2048.8,2048.4,0.4623489]
[1772802936712,1.71364721,2048.8,2048.4,0.4623489]
[1772802938017,0.49342074,2048.8,2048.5,0.4623489]
[1772802938201,0.001,2048.8,2048.5,0.4623489]
[1772802940020,1.2212301,2048.8,2048.5,0.4623489]
[1772802940223,0.001,2048.8,2048.6,0.4623489]
[1772802941600,0.001,2048.8,2048.5,0.4623489]
[1772802943215,0.001,2048.8,2048.5,1.68274764]
[1772802943512,0.001,2048.8,2048.6,0.4623489]
[1772802945821,0.001,2048.8,2048.6,1.68268993]
[1772802946002,0.001,2048.8,2048.6,0.4623489]
[1772802946491,0.001,2048.8,2048.7,0.4623489]
[1772802947501,0.001,2048.8,2048.5,1.68272925]
[1772802947702,0.001,2048.8,2048.6,0.4623489]
[1772802952016,0.001,2048.8,2048.6,1.682665]
[1772802952219,0.001,2048.8,2048.7,0.4623489]
[1772802952724,0.001,2049.0,2048.7,0.4623489]
[1772802953218,0.49342074,2049.0,2048.7,0.4623489]
[1772802953426,0.001,2049.0,2048.7,0.4623489]
[1772802954621,0.001,2049.0,2048.8,0.48998156]
[1772802957228,0.001,2049.0,2048.9,0.48998156]
[1772802957722,1.68962969,2049.3,2048.9,0.48998156]
[1772802957924,0.4696985,2049.6,2048.9,0.48998156]
[1772802958922,1.68945577,2049.6,2048.9,0.48998156]
[1772802959129,0.4696985,2049.5,2048.9,0.48998156]
[1772802960400,0.4696985,2049.5,2049.1,0.48998156]
[1772802960600,2.74373724,2049.7,2049.1,0.48998156]
[1772802960601,1.68943574,2049.7,2049.1,0.48998156]
[1772802960801,0.4696985,2049.7,2049.1,0.48998156]
[1772802961907,0.48975796,2049.6,2049.0,1.22010736]
[1772802962104,0.001,2049.3,2049.0,0.49884813]
[1772802962304,0.49075796,2049.3,2048.8,1.72015362]
[1772802962515,0.49075796,2049.3,2048.9,0.49884813]
[1772802962709,1.71069218,2049.3,2048.9,0.49884813]
[1772802963527,0.48975796,2049.2,2048.9,0.49884813]
[1772802963830,0.48975796,2049.2,2048.8,1.22130549]
[1772802963831,0.48975796,2049.2,2048.8,0.0011]
[1772802964426,1.70980578,2049.1,2048.8,0.0011]
[1772802966731,0.48975796,2049.1,2048.8,0.0011]
[1772802966931,1.22003451,2049.2,2048.8,0.49994813]
[1772802967232,0.48975796,2049.2,2048.8,0.49994813]
[1772802967817,1.70974892,2049.2,2048.8,0.49994813]
[1772802968338,0.48975796,2049.2,2048.8,0.49994813]
[1772802969019,1.70974985,2049.2,2048.8,1.72015354]
[1772802969636,0.48975796,2049.2,2048.8,1.72015354]
[1772802969806,1.70975257,2049.2,2048.9,0.49884813]
[1772802970831,0.48975796,2049.2,2048.9,0.49884813]
[1772802971538,1.70974652,2049.2,2048.9,0.49884813]
[1772802971919,0.48975796,2049.1,2048.8,0.49994813]
[1772802972115,0.48975796,2049.1,2048.8,0.0011]
[1772802972516,0.48975796,2049.1,2048.8,1.22131395]
[1772802972847,0.48975796,2049.1,2048.8,1.72016208]
[1772802973249,1.71073345,2049.3,2048.9,0.49884813]
[1772802973453,0.49075796,2049.3,2048.9,0.49884813]
[1772802973753,0.001,2049.3,2049.1,0.49884813]
[1772802974055,4.87857088,2049.8,2049.2,0.49884813]
[1772802974056,0.48975796,2049.8,2049.2,0.49884813]
[1772802974617,1.21961516,2049.9,2049.2,0.49884813]
[1772802976059,1.70937312,2049.9,2049.4,0.49884813]
[1772802976632,0.48975796,2050.1,2049.4,0.49884813]
[1772802978128,0.48975796,2050.0,2049.6,0.49884813]
[1772802978794,1.21950981,2050.1,2049.6,0.49884813]
[1772802979139,1.70926777,2050.1,2049.6,0.49884813]
[1772802980054,1.70926777,2050.1,2049.6,1.21972197]
[1772802980261,1.70926777,2050.1,2049.7,0.49884813]
[1772802981334,0.48975796,2050.0,2049.5,1.21976636]
[1772802981850,0.48975796,2050.0,2049.5,1.71861449]
[1772802983470,1.70932964,2049.9,2049.5,0.49884813]
[1772802983632,0.48975796,2049.8,2049.5,1.718651]
[1772802985753,1.70921816,2050.1,2049.6,0.49884813]
[1772802985966,0.48975796,2050.5,2049.6,0.49884813]
[1772802986531,0.001,2049.9,2049.6,0.49884813]
[1772802986835,0.48975796,2050.4,2049.7,0.49884813]
[1772802987844,0.48975796,2050.4,2049.9,0.49884813]
[1772802988044,1.70903451,2050.4,2049.9,0.49884813]
[1772802988356,0.48975796,2050.4,2049.9,0.49884813]
[1772802988565,0.48975796,2050.6,2049.9,0.49884813]
[1772802990574,1.70894664,2050.6,2050.1,0.49884813]
[1772802991051,0.33795529,2050.7,2050.1,0.49884813]
[1772802991458,0.48975796,2050.6,2050.1,0.49884813]
[1772802991764,0.48975796,2050.6,2049.7,0.48521117]
[1772802991949,0.48512665,2050.5,2049.7,0.48521117]
[1772802992699,0.48512665,2050.3,2049.5,1.70611604]
[1772802993542,0.48512665,2050.3,2049.6,0.48521117]
[1772802994674,1.21939322,2050.2,2049.8,0.48521117]
[1772802995081,0.48512665,2050.1,2049.5,1.22086045]
[1772802995283,0.48512665,2050.1,2049.5,1.70607162]
[1772802995457,0.48512665,2050.1,2049.6,0.48521117]
[1772802997070,1.70462441,2050.1,2049.6,1.70491085]
[1772802997480,0.48512665,2050.0,2049.5,0.0011]
[1772802997862,0.48512665,2050.0,2049.5,1.22090818]
[1772802998058,0.48512665,2050.0,2049.8,0.0011]
[1772802999184,1.70469833,2049.9,2049.8,0.0011]
[1772803003700,1.70559036,2050.1,2049.8,0.48631117]
[1772803003991,0.48512665,2050.0,2049.8,0.0011]
[1772803005188,1.70466516,2050.0,2049.8,0.0011]
[1772803005412,1.21953851,2050.0,2049.8,0.0011]
[1772803005688,1.21953851,2050.0,2049.8,0.48631117]
[1772803007396,0.001,2050.1,2049.8,0.48631117]
[1772803007593,0.001,2050.1,2049.9,0.48521117]
[1772803008679,0.001,2050.1,2049.8,0.0011]
[1772803008885,0.48612665,2050.1,2049.8,0.0011]
[1772803009287,0.48612665,2050.1,2049.8,0.48631117]
[1772803009489,1.70561557,2050.1,2049.8,0.48631117]
[1772803011795,0.48512665,2050.0,2049.8,0.0011]
[1772803012185,1.22048892,2050.1,2049.8,0.48631117]
[1772803012498,0.48512665,2050.5,2050.0,0.48521117]
[1772803012696,1.70439236,2050.5,2050.0,0.48521117]
[1772803013401,1.21920409,2050.6,2050.0,0.48521117]
[1772803013602,1.70433074,2050.6,2050.2,0.48521117]
[1772803013905,5.21447146,2050.7,2050.2,0.48521117]
[1772803013906,0.33795529,2050.7,2050.2,0.48521117]
[1772803015882,0.33795529,2050.7,2050.4,0.48607683]
[1772803017102,0.33795529,2050.7,2050.2,0.48607683]
[1772803017103,0.45672286,2050.6,2050.2,0.48607683]
[1772803017301,0.45672286,2050.6,2050.1,0.48607683]
[1772803018374,1.67591423,2050.6,2050.1,1.70547576]
[1772803018671,0.33795529,2050.7,2050.2,0.48607683]
[1772803019430,0.001,2050.9,2050.2,0.48607683]
[1772803019595,1.21998371,2050.9,2050.2,0.48607683]
[1772803019905,1.67670657,2050.9,2050.2,0.48607683]
[1772803020085,0.45672286,2050.8,2050.2,0.48607683]
[1772803020602,0.45672286,2050.8,2050.3,1.70541058]
[1772803020792,0.45672286,2050.8,2050.4,0.48607683]
[1772803021783,0.001,2050.6,2050.4,0.48607683]
[1772803022595,1.2200056,2050.9,2050.4,0.48903328]
[1772803022797,0.4728517,2050.9,2050.5,1.21921482]
[1772803023196,0.4728517,2050.9,2050.5,1.7082481]
[1772803023695,0.001,2050.9,2050.6,0.48903328]
[1772803025192,0.001,2050.9,2050.6,1.70816727]
[1772803026493,0.001,2050.9,2050.7,0.48903328]
[1772803028717,0.001,2050.9,2050.5,1.70820032]
[1772803028919,0.4728517,2050.9,2050.1,0.48903328]
[1772803029291,0.4718517,2050.7,2050.0,0.0011]
[1772803029511,0.4718517,2050.5,2050.0,0.0011]
[1772803031620,0.4718517,2050.3,2050.0,0.0011]
[1772803031821,0.4718517,2050.3,2049.8,0.0011]
[1772803033330,0.4718517,2050.3,2050.2,0.001]
[1772803033513,0.4718517,2050.3,2049.8,0.0011]
[1772803033832,1.21939322,2050.2,2050.0,0.001]
[1772803033997,0.4718517,2050.1,2050.0,0.001]
[1772803036125,1.6913044,2050.1,2050.0,0.001]
[1772803036327,6.39924508,2050.4,2050.0,0.001]
[1772803036328,5.34922559,2050.3,2050.0,0.001]
[1772803037439,5.34922559,2050.3,2049.8,0.0011]
[1772803037440,0.4718517,2050.2,2049.8,0.0011]
[1772803038711,1.2194527,2050.1,2049.8,0.0011]
[1772803038911,1.6913044,2050.1,2049.8,0.0011]
[1772803039541,0.4718517,2050.0,2049.8,0.0011]
[1772803042129,1.21957168,2049.9,2049.8,0.0011]
[1772803042637,5.34992064,2050.0,2049.8,0.0011]
[1772803042638,1.69141027,2050.0,2049.8,0.0011]
[1772803043321,0.4718517,2049.9,2049.8,0.0011]
[1772803044048,1.69135339,2050.1,2049.8,0.0011]
[1772803046049,1.69135339,2050.1,2050.0,0.0011]
[1772803049656,0.4718517,2050.0,2049.8,0.0011]
[1772803049860,0.4718517,2050.0,2049.5,5.36923786]
[1772803049861,0.4718517,2050.0,2049.5,0.0011]
[1772803052647,0.49728502,2049.8,2049.5,0.49612574]
[1772803052966,1.21957168,2049.9,2049.5,0.49612574]
[1772803053735,1.7168567,2049.9,2049.5,0.49612574]
[1772803054840,1.7168567,2049.9,2049.6,0.49502574]
[1772803056664,1.7168567,2049.9,2049.5,0.0011]
[1772803057160,1.7168567,2049.9,2049.5,0.49612574]
[1772803058430,0.49728502,2049.8,2049.5,0.0011]
[1772803059468,1.71696844,2049.8,2049.7,0.0011]
[1772803061754,3.24979721,2050.0,2049.7,0.0011]
[1772803061955,1.21951219,2050.0,2049.7,0.49612574]
[1772803064666,6.24977744,2050.1,2049.8,0.49502574]
[1772803068374,4.71677744,2050.1,2049.8,0.49502574]
[1772803069948,3.0,2050.1,2049.9,0.49502574]
[1772803070775,3.0,2050.1,2049.8,1.714631]
[1772803070979,3.0,2050.1,2049.8,1.71465564]
[1772803071276,2.8,2050.1,2049.9,0.49502574]
[1772803072052,1.21929984,2050.4,2049.9,0.49502574]
[1772803072359,4.01929984,2050.4,2049.9,0.49502574]
[1772803072567,4.01929984,2050.4,2050.1,0.49502574]
[1772803074153,0.49728502,2050.3,2049.9,0.49502574]
[1772803074374,0.49728502,2050.3,2049.7,0.0011]
[1772803074375,0.49990202,2050.2,2049.7,0.46738209]
[1772803074571,0.49990202,2049.9,2049.7,0.0011]
[1772803075246,3.29990202,2049.9,2049.7,0.0011]
[1772803075461,0.49990202,2049.8,2049.3,0.0011]
[1772803075863,2.8,2049.7,2049.3,0.0011]
[1772803076065,0.49990202,2049.6,2049.3,0.0011]
[1772803077363,0.49990202,2049.4,2049.3,0.0011]
[1772803077663,0.49990202,2049.4,2049.0,0.46738209]
[1772803079482,5.56286082,2049.5,2049.1,0.46628209]
[1772803079683,2.8,2049.5,2049.1,0.46628209]
[1772803080361,0.49990202,2049.8,2049.1,0.46628209]
[1772803080558,2.76361589,2049.9,2049.1,0.46628209]
[1772803080755,5.56361589,2049.9,2049.1,0.46628209]
[1772803081157,4.51947809,2049.9,2049.1,0.46628209]
[1772803081381,4.51947809,2049.9,2049.3,0.46628209]
[1772803082002,0.4975201,2049.8,2049.1,0.48146934]
[1772803082312,0.4975201,2049.8,2049.0,0.0011]
[1772803082598,0.4975201,2049.6,2049.0,0.0011]
[1772803082892,0.4975201,2049.4,2049.3,0.001]
[1772803083061,0.4975201,2049.4,2048.9,1e-08]
[1772803083257,0.4975201,2049.2,2048.8,1.2779725]
[1772803083453,1.71752781,2049.2,2048.8,1.2779725]
[1772803083875,0.4975201,2049.2,2048.8,1.2779725]
[1772803084987,1.71751293,2049.2,2048.8,1.2779725]
[1772803085377,4.01993114,2049.3,2048.9,0.05664665]
[1772803085577,4.87879793,2049.7,2048.9,0.05664665]
[1772803085578,1.71731848,2049.6,2048.9,0.05664665]
[1772803086490,0.4975201,2049.5,2048.9,0.05664665]
[1772803086989,2.8,2049.4,2048.9,0.05664665]
[1772803087489,3.2975201,2049.4,2048.9,0.05664665]
[1772803087867,3.2975201,2049.4,2049.0,1.27675401]
[1772803088060,0.4975201,2049.3,2048.8,0.05774665]
[1772803088278,0.4975201,2049.3,2048.8,1.2779688]
[1772803088662,2.8,2049.2,2048.9,0.05664665]
[1772803089896,2.8,2049.2,2049.0,1.27675401]
[1772803090796,2.8,2049.2,2048.9,1.22012389]
[1772803090974,2.8,2049.2,2048.8,0.0011]
[1772803090975,3.2975201,2049.1,2048.8,0.0011]
[1772803091897,3.2975201,2049.1,2048.8,1.22131366]
[1772803092494,3.2975201,2049.1,2048.8,0.0011]
[1772803092679,0.4975201,2049.0,2048.8,0.0011]
[1772803093232,0.4975201,2048.8,2048.5,0.0011]
[1772803093799,0.4975201,2048.6,2048.3,0.0011]
[1772803094389,0.4975201,2048.5,2048.3,0.0011]
[1772803094698,3.2975201,2048.4,2048.3,0.0011]
[1772803095474,0.4975201,2048.4,2048.1,0.0011]
[1772803095673,0.4975201,2048.2,2048.1,0.0011]
[1772803095874,0.4975201,2048.2,2047.9,0.0011]
[1772803096091,2.7989,2048.1,2047.9,0.0011]
[1772803096298,2.7989,2048.1,2047.9,1.2218589]
[1772803096991,2.7989,2048.1,2047.9,0.0011]
[1772803097182,0.4975201,2048.0,2047.9,0.0011]
[1772803098403,2.7989,2048.1,2047.9,0.0011]
[1772803098620,2.7989,2048.1,2047.9,0.05884665]
[1772803098952,0.4975201,2048.4,2048.0,1.22070312]
[1772803099079,3.2964201,2048.4,2048.0,1.22070312]
[1772803099874,4.51688522,2048.4,2048.0,1.22070312]
[1772803100508,3.2964201,2048.4,2048.0,1.22070312]
[1772803102112,0.4975201,2048.4,2048.0,1.22070312]
[1772803102820,2.74115335,2048.3,2048.1,0.05774665]
[1772803103117,0.4975201,2048.6,2048.1,0.05774665]
[1772803103324,0.49999999,2048.9,2048.1,0.05774665]
[1772803103483,0.001,2049.0,2048.2,2.18785556]
[1772803104181,0.001,2049.0,2048.3,1.22052433]
[1772803104585,0.001,2049.0,2048.3,2.58552433]
[1772803105987,0.49999999,2049.6,2048.3,2.58552433]
[1772803107016,1.71964966,2049.8,2048.4,0.065536]
[1772803107619,1.71964966,2049.8,2048.5,0.05089577]
[1772803107818,0.001,2049.4,2048.5,0.05089577]
[1772803108215,0.001,2049.4,2048.7,0.05089577]
[1772803110698,0.001,2049.4,2048.8,1.22022647]
[1772803110901,0.001,2049.4,2048.9,0.05089577]
[1772803113635,0.001,2049.4,2049.0,1.22010736]
[1772803113986,0.001,2049.4,2049.1,0.05089577]
[1772803114113,0.47455211,2049.7,2049.1,0.05089577]
[1772803114909,1.22157231,2049.9,2049.1,0.05089577]
[1772803114910,0.47705211,2049.9,2049.1,0.05089577]
[1772803116132,0.47705211,2049.9,2049.3,0.04989577]
[1772803120228,0.47705211,2049.9,2049.4,1.21986923]
[1772803120632,0.001,2049.7,2049.4,1.21986923]
[1772803121354,0.47605211,2049.7,2049.3,1.2210195]
[1772803122253,1.22070969,2049.7,2049.3,0.0011]
[1772803122443,0.47505211,2049.6,2049.3,0.0011]
[1772803125338,0.47505211,2049.5,2049.3,0.0011]
[1772803125531,0.47505211,2049.5,2049.0,1.22120736]
[1772803125851,0.47505211,2049.5,2049.0,1.27220313]
[1772803126150,1.2207243,2049.7,2049.1,0.05099577]
[1772803126151,0.47550211,2049.7,2049.1,0.05099577]
[1772803126452,0.001,2049.7,2049.1,0.05099577]
[1772803127226,0.001,2049.7,2049.2,1.27098405]
[1772803127636,0.001,2049.7,2049.3,0.05099577]
[1772803129758,0.001,2049.7,2049.4,1.21986923]
[1772803130066,0.47550211,2049.7,2049.4,1.21986923]
[1772803130523,0.47550211,2049.7,2049.1,1.22004782]
[1772803131366,0.001,2049.7,2049.2,0.05099577]
[1772803131726,0.001,2049.7,2049.3,1.21992875]
[1772803131934,0.001,2049.7,2049.3,1.27092452]
[1772803133230,0.001,2049.7,2049.5,0.0011]
[1772803133750,0.002,2050.1,2049.6,0.04899577]
[1772803133948,0.002,2050.1,2049.7,1.26868645]
[1772803137656,0.002,2050.1,2049.7,1.21969068]
[1772803137862,0.002,2050.1,2049.7,1.26868645]
[1772803138234,0.48031827,2050.1,2049.7,1.26868645]
[1772803139660,0.002,2050.1,2049.8,0.04899577]
[1772803140238,0.002,2050.1,2049.9,1.21957168]
[1772803143036,0.49514833,2050.1,2049.5,1.22086208]
[1772803143564,0.49514833,2050.1,2049.5,1.26985785]
[1772803144866,0.49314833,2050.0,2049.5,1.26985785]
[1772803145647,0.001,2049.9,2049.5,1.26985785]
[1772803146465,0.002,2050.1,2049.7,0.04899577]
[1772803146966,0.002,2050.1,2049.8,1.21963118]
[1772803149781,0.002,2050.1,2049.8,1.26862695]
[1772803150181,0.49514834,2050.6,2049.9,0.49037846]
[1772803151061,0.00200001,2050.6,2049.9,0.49037846]
[1772803151779,0.00200001,2050.6,2050.1,0.49037846]
[1772803151979,0.00200001,2050.6,2050.3,0.49037846]
[1772803152403,0.001,2050.9,2050.3,0.49037846]
[1772803153652,0.002,2051.2,2050.3,0.55591446]
[1772803153865,0.002,2051.2,2050.5,0.49037846]
[1772803155071,0.49314833,2051.6,2050.6,0.49037846]
[1772803155270,0.49314833,2051.6,2050.8,0.49037846]
[1772803155781,0.49314833,2051.6,2051.0,0.49037846]
[1772803157269,0.001,2051.4,2051.0,0.49037846]
[1772803157898,0.001,2051.4,2051.1,1.70923663]
[1772803158466,0.49414833,2051.4,2051.1,1.21885817]
[1772803158789,0.001,2051.4,2051.1,1.21885817]
[1772803158979,0.001,2051.4,2051.2,0.49037846]
[1772803159184,0.49314833,2051.8,2051.3,0.49037846]
[1772803159786,0.49314833,2052.0,2051.3,0.49037846]
[1772803160092,0.49314833,2052.0,2051.5,0.49037846]
[1772803160606,0.49314833,2052.2,2051.5,0.49037846]
[1772803161496,0.49314833,2052.5,2051.5,0.49037846]
[1772803162165,0.49314833,2052.5,2051.7,0.49037846]
[1772803162398,0.49314833,2052.5,2051.7,1.87437846]
[1772803162585,0.49314833,2052.4,2051.7,1.384]
[1772803162802,0.49314833,2052.4,2051.1,0.49037846]
[1772803162975,0.49314833,2052.4,2051.2,0.49037846]
[1772803164501,0.49314833,2052.4,2051.1,1.384]
[1772803164502,0.49314833,2052.2,2051.1,3.09320937]
[1772803165400,0.49314833,2052.2,2051.2,0.49037846]
[1772803166299,0.49314833,2052.0,2051.2,1.70914328]
[1772803166482,0.49314833,2052.0,2051.2,1.21876482]
[1772803166689,0.49314833,2052.0,2051.3,0.49037846]
[1772803167707,1.71139288,2052.2,2051.3,0.49037846]
[1772803168080,0.49314833,2052.1,2051.3,0.49037846]
[1772803168605,1.21832358,2052.0,2051.4,1.70905838]
[1772803168810,0.49314833,2051.9,2051.4,1.70905838]
[1772803169016,0.49314833,2051.9,2051.4,0.001]
[1772803169381,0.49314833,2051.7,2051.4,0.001]
[1772803170076,0.002,2051.8,2051.4,0.001]
[1772803170715,0.002,2051.8,2051.4,1.71005838]
[1772803171019,0.002,2051.8,2051.4,0.49137846]
[1772803171884,0.002,2051.8,2051.1,6.26043225]
[1772803171885,0.46361981,2051.8,2051.1,1.385]
[1772803172084,0.46161981,2051.7,2051.1,1.385]
[1772803172296,0.46161981,2051.7,2051.1,0.001]
[1772803173112,1.68018093,2051.6,2051.1,0.001]
[1772803173893,0.46161981,2051.5,2051.1,0.001]
[1772803174895,1.21856112,2051.6,2051.1,0.45204572]
[1772803175097,0.002,2051.8,2051.3,0.45104572]
[1772803175607,0.46161981,2051.7,2051.2,1.21879875]
[1772803176205,0.46161981,2051.7,2051.2,1.66984447]
[1772803176902,0.46161981,2051.7,2051.2,0.45104572]
[1772803177095,0.46161981,2051.5,2051.1,0.001]
[1772803177804,1.68016619,2051.7,2051.1,0.45204572]
[1772803178007,1.21854638,2051.7,2051.1,0.45204572]
[1772803178202,1.22049223,2051.8,2051.1,0.45204572]
[1772803179122,1.68211204,2051.8,2051.2,1.66984447]